bitfinex/quotes_BTCUSD_20220207
["timestamp","ask_amount","ask_price","bid_price","bid_amount"]
[1644244631165,0.25080944,42976.0,42973.0,0.05]
[1644244631367,0.07660859,42975.0,42973.0,0.05045975]
[1644244631566,0.25080944,42976.0,42973.0,0.05045975]
[1644244632167,0.26026666,42978.0,42973.0,0.00045975]
[1644244632366,0.26026666,42978.0,42968.0,0.058201]
[1644244632568,0.08769729,42978.0,42969.0,0.039999]
[1644244633373,0.07168189,42990.0,42976.0,0.75]
[1644244633571,0.02188849,42990.0,42983.0,0.05]
[1644244633774,0.02188849,42990.0,42988.0,0.05]
[1644244633971,0.02188849,42990.0,42989.0,0.039957]
[1644244634186,0.02188849,42990.0,42989.0,0.67932896]
[1644244634385,0.02188849,42990.0,42989.0,0.76276584]
[1644244634784,0.001,43006.0,42990.0,0.75]
[1644244634986,0.001,43006.0,43004.0,0.05]
[1644244635184,0.001,43006.0,43005.0,0.03992]
[1644244636083,0.001,43006.0,42998.0,0.3]
[1644244636284,0.001,43006.0,43001.0,0.11128546]
[1644244636683,0.001,43006.0,43000.0,0.3391]
[1644244636884,0.001,43006.0,43000.0,0.0891]
[1644244636885,0.27731891,43004.0,43000.0,0.0891]
[1644244637188,0.27731891,43004.0,43000.0,0.0391]
[1644244637385,0.24772639,43003.0,43000.0,0.0391]
[1644244637584,0.06974031,43002.0,42992.0,0.34963272]
[1644244637835,0.08823684,42995.0,42992.0,0.39963272]
[1644244638037,0.08823684,42995.0,42992.0,0.05]
[1644244638237,0.08823684,42995.0,42989.0,0.11098849]
[1644244638438,0.08823684,42995.0,42989.0,0.05598849]
[1644244639034,0.08823684,42995.0,42989.0,0.01688849]
[1644244639837,0.02088589,43001.0,42988.0,0.05816471]
[1644244640035,0.00069982,42994.0,42988.0,0.05816471]
[1644244640637,0.02368473,43001.0,42995.0,0.26226976]
[1644244640638,0.01938455,43001.0,42995.0,0.26226976]
[1644244640838,0.01938455,43001.0,42997.0,0.05814369]
[1644244641039,0.01658571,43001.0,42998.0,0.0391]
[1644244641238,0.001,43006.0,42998.0,0.0391]
[1644244641692,0.75,43005.0,42989.0,0.116307]
[1644244641893,0.54943187,43004.0,42978.0,0.23261825]
[1644244642093,0.75,43005.0,42982.0,0.116342]
[1644244642094,0.05,42997.0,42982.0,0.116342]
[1644244642291,0.00017102,42998.0,42994.0,0.07708985]
[1644244642692,0.00017102,42998.0,42987.0,0.23712534]
[1644244642891,0.00017102,42998.0,42989.0,0.097258]
[1644244643093,0.00017102,42998.0,42994.0,0.07716395]
[1644244643291,0.001,43006.0,42994.0,0.12716395]
[1644244643707,0.00017102,42998.0,42994.0,0.06900595]
[1644244644092,0.32471936,43006.0,42994.0,0.01900595]
[1644244644093,0.05,43002.0,42994.0,0.01900595]
[1644244644291,0.05,43002.0,42994.0,0.01887677]
[1644244644491,0.26394319,43001.0,42994.0,0.01887677]
[1644244644693,0.05,43002.0,42994.0,0.01887677]
[1644244645092,0.35151692,43005.0,42994.0,0.01887677]
[1644244645335,0.26735387,43006.0,42993.0,0.06456519]
[1644244645734,0.05,43009.0,42995.0,0.2831058]
[1644244645933,0.25124908,43014.0,42995.0,0.2831058]
[1644244646133,0.00019056,43002.0,42995.0,0.2831058]
[1644244646338,0.00019056,43002.0,42996.0,0.0391]
[1644244646734,0.00019056,43002.0,43000.0,0.06364781]
[1644244647035,0.07561588,43011.0,43004.0,0.05814805]
[1644244647234,0.00076211,43010.0,43004.0,0.05814805]
[1644244647434,0.00076211,43010.0,42997.0,0.27445206]
[1644244647633,0.00076211,43010.0,42997.0,0.36355206]
[1644244647833,0.21428946,43008.0,42997.0,0.36355206]
[1644244648033,0.21428946,43008.0,42997.0,0.1891]
[1644244648234,0.21428946,43008.0,42997.0,0.2391]
[1644244648433,0.00062803,43005.0,42997.0,0.1391]
[1644244648636,0.00062803,43005.0,42999.0,0.05815528]
[1644244648835,0.00062803,43005.0,42999.0,0.11630928]
[1644244649086,0.00062803,43005.0,43000.0,0.05]
[1644244649283,0.07812763,43011.0,43000.0,0.05]
[1644244649284,0.07561588,43011.0,43000.0,0.05]
[1644244649483,0.21646919,43009.0,43000.0,0.05]
[1644244649882,0.00062803,43005.0,43000.0,0.05]
[1644244650283,0.08600763,43004.0,43000.0,0.05]
[1644244650483,0.21646919,43009.0,43000.0,0.05]
[1644244650683,0.00018841,43004.0,43000.0,0.05]
[1644244650884,0.00018841,43004.0,42999.0,0.05815682]
[1644244651084,0.00018841,43004.0,42998.0,0.07767352]
[1644244651284,0.00018841,43004.0,42999.0,0.05]
[1644244651686,0.05,43008.0,42998.0,0.01951652]
[1644244651886,0.08709424,43002.0,42998.0,0.01951652]
[1644244652086,0.00019717,43004.0,42998.0,0.01951652]
[1644244652586,0.26277755,43001.0,42998.0,0.01951652]
[1644244652844,0.00019717,43004.0,42998.0,0.01951652]
[1644244653043,0.26156664,43006.0,42998.0,0.03910794]
[1644244653244,0.00065538,43002.0,42998.0,0.03910794]
[1644244653946,0.00065538,43002.0,42997.0,0.116308]
[1644244654146,0.05,43005.0,42997.0,0.116308]
[1644244654345,0.00065538,43002.0,42998.0,0.05]
[1644244655246,0.47817348,42992.0,42981.0,0.290796]
[1644244655449,0.59259736,42992.0,42983.0,0.232646]
[1644244655647,0.05,42990.0,42988.0,0.00067453]
[1644244655845,0.02170533,42999.0,42988.0,0.00067453]
[1644244656047,0.02170533,42999.0,42989.0,0.05]
[1644244656247,0.02170533,42999.0,42995.0,0.05]
[1644244657690,0.02170533,42999.0,42995.0,0.045]
[1644244657889,0.02170533,42999.0,42998.0,0.045]
[1644244658488,0.02170533,42999.0,42991.0,0.045]
[1644244659092,0.02170533,42999.0,42989.0,0.44463289]
[1644244659093,0.02170533,42999.0,42998.0,0.045]
[1644244659295,0.0005726,43000.0,42998.0,0.42026776]
[1644244659489,0.0005726,43000.0,42999.0,0.32361021]
[1644244659891,0.0005726,43000.0,42999.0,0.63494456]
[1644244660095,0.0005726,43000.0,42999.0,0.76087453]
[1644244660337,0.01811327,43005.0,42999.0,0.76087453]
[1644244660338,0.00058565,43002.0,42999.0,0.76087453]
[1644244660543,0.00234223,43008.0,43004.0,0.01170106]
[1644244660837,0.00234223,43008.0,43007.0,0.045]
[1644244661039,0.00234223,43008.0,43007.0,0.0841]
[1644244661237,0.00234223,43008.0,43007.0,0.0391]
[1644244661238,0.2182288,43008.0,43007.0,0.0391]
[1644244661440,0.21588657,43008.0,43007.0,0.0391]
[1644244661637,0.005,43010.0,43007.0,0.0391]
[1644244662036,0.005,43010.0,43005.0,0.05]
[1644244662037,0.36696365,43008.0,43005.0,0.05]
[1644244662239,0.36696365,43008.0,43004.0,0.01811327]
[1644244662439,0.005,43005.0,43004.0,0.01811327]
[1644244662645,0.005,43005.0,42978.0,0.045]
[1644244662646,0.40253427,43005.0,42978.0,0.045]
[1644244662842,0.005,42991.0,42979.0,0.045]
[1644244663241,0.005,42988.0,42978.0,0.116348]
[1644244663439,0.005,42988.0,42971.0,0.045]
[1644244663440,0.005,42988.0,42974.0,0.103185]
[1644244663640,0.30492041,42988.0,42981.0,0.116353]
[1644244663841,0.005,42988.0,42981.0,0.116353]
[1644244664095,0.005,42996.0,42987.0,0.06494653]
[1644244664290,0.3,43003.0,42988.0,0.045]
[1644244664490,0.005,42996.0,42987.0,0.01994653]
[1644244664888,0.26881266,42996.0,42987.0,0.01994653]
[1644244665088,0.26881266,42996.0,42989.0,0.058169]
[1644244665288,0.26881266,42996.0,42989.0,0.05888098]
[1644244665689,0.26881266,42996.0,42989.0,0.00071198]
[1644244666189,0.26881266,42996.0,42989.0,0.05817]
[1644244666491,0.26881266,42996.0,42987.0,0.01994653]
[1644244666492,0.005,42990.0,42987.0,0.01994653]
[1644244666889,0.26881266,42996.0,42987.0,0.01994653]
[1644244667095,0.005,42994.0,42988.0,0.058173]
[1644244667292,0.005,42998.0,42989.0,0.045]
[1644244667592,0.005,42998.0,42997.0,0.045]
[1644244667593,0.02086673,42998.0,42997.0,0.045]
[1644244669234,0.01586673,42998.0,42997.0,0.045]
[1644244669434,0.19986082,43002.0,42997.0,0.103161]
[1644244669636,0.19986082,43002.0,42997.0,0.108161]
[1644244670835,0.005,43003.0,42997.0,0.108161]
[1644244671236,0.005,43003.0,42997.0,0.058161]
[1644244671435,0.005,43003.0,42997.0,0.108161]
[1644244671689,0.00069613,43004.0,42997.0,0.108161]
[1644244671888,0.00069613,43004.0,43002.0,0.07927361]
[1644244672090,0.00069613,43004.0,42997.0,0.05]
[1644244672290,0.51926824,43006.0,42997.0,0.05]
[1644244672489,0.00069617,43005.0,42996.0,0.05071193]
[1644244672888,0.00081526,42998.0,42996.0,0.05071193]
[1644244673187,0.00081526,42998.0,42996.0,0.14470875]
[1644244673387,0.00081526,42998.0,42996.0,0.2021566]
[1644244673589,0.00081526,42998.0,42996.0,0.12720766]
[1644244673789,0.00081526,42998.0,42996.0,0.17720766]
[1644244674289,0.00081526,42998.0,42996.0,0.01904788]
[1644244674290,0.28312377,42998.0,42996.0,0.01904788]
[1644244674490,0.75,42996.0,42995.0,0.00071192]
[1644244674689,1.16068895,42996.0,42982.0,0.06502227]
[1644244674994,0.01904788,42997.0,42995.0,0.00071192]
[1644244675194,0.01904788,42997.0,42982.0,0.06502227]
[1644244675437,0.02333596,42997.0,42984.0,0.04571192]
[1644244675638,0.02333596,42997.0,42990.0,0.11632283]
[1644244675838,0.02333596,42997.0,42991.0,0.05]
[1644244677037,0.02333596,42997.0,42992.0,0.26902758]
[1644244677239,0.02333596,42997.0,42992.0,0.00050308]
[1644244677441,0.22580788,42996.0,42992.0,0.00050308]
[1644244677642,0.00428808,42995.0,42992.0,0.05867208]
[1644244677839,0.01904788,42997.0,42993.0,0.26609702]
[1644244678040,0.02333596,42997.0,42993.0,0.32426179]
[1644244678442,0.01904788,42997.0,42993.0,0.32497373]
[1644244678641,0.01904788,42997.0,42996.0,0.04571192]
[1644244678843,0.0006979,43000.0,42996.0,0.50651634]
[1644244679104,0.0006979,43000.0,42999.0,0.04571192]
[1644244679297,0.0006979,43000.0,42999.0,0.08481192]
[1644244679499,0.02019402,43006.0,43005.0,0.07316261]
[1644244679698,0.02019402,43006.0,43005.0,0.12316261]
[1644244680000,0.01289222,43006.0,43005.0,0.05]
[1644244680397,0.01289222,43006.0,43005.0,0.0573018]
[1644244680800,0.01289222,43006.0,43005.0,0.0073018]
[1644244681001,0.01289222,43006.0,43005.0,0.0023018]
[1644244681199,0.01289222,43006.0,43005.0,0.26592211]
[1644244681402,0.01289222,43006.0,43005.0,0.0023018]
[1644244681599,0.01289222,43006.0,43005.0,0.32282251]
[1644244682933,0.01289222,43006.0,43005.0,0.0023018]
[1644244683334,0.01289222,43006.0,43005.0,0.31358951]
[1644244684437,0.01289222,43006.0,43005.0,0.45654943]
[1644244684636,0.00069621,43008.0,43007.0,0.05813558]
[1644244685033,0.02531797,43014.0,43007.0,0.05813558]
[1644244685238,0.02531797,43014.0,43012.0,0.04071192]
[1644244685436,0.02253355,43014.0,43012.0,0.11722438]
[1644244685836,0.02253355,43014.0,43012.0,0.52146301]
[1644244686037,0.02253355,43014.0,43013.0,0.3]
[1644244686336,0.02153355,43014.0,43013.0,0.0391]
[1644244686787,0.002,43017.0,43014.0,0.366255]
[1644244686986,0.002,43017.0,43016.0,0.03071192]
[1644244687587,0.002,43017.0,43015.0,0.05]
[1644244687792,0.002,43017.0,43014.0,0.108127]
[1644244687989,0.46268788,43017.0,43014.0,0.108127]
[1644244688194,0.46268788,43017.0,43014.0,0.058127]
[1644244688391,0.46268788,43017.0,43013.0,0.02053355]
[1644244688695,0.01928808,43014.0,43013.0,0.02053355]
[1644244688892,0.34517908,43014.0,43013.0,3.55e-06]
[1644244689490,0.34517908,43014.0,43006.0,0.058154]
[1644244689491,0.32415497,43013.0,43006.0,0.10392933]
[1644244689690,0.01928808,43007.0,43006.0,0.10392933]
[1644244689892,0.01928808,43011.0,43006.0,0.10392933]
[1644244690091,0.01928808,43007.0,43006.0,0.10392933]
[1644244691137,0.01928808,43007.0,43006.0,0.04577836]
[1644244691536,0.01928808,43007.0,43006.0,0.10392825]
[1644244691738,0.01928808,43007.0,43002.0,0.00071185]
[1644244691937,0.00069444,43010.0,43002.0,0.05886885]
[1644244692339,0.00069444,43010.0,43002.0,0.37529075]
[1644244692538,0.32415497,43013.0,43002.0,0.3745789]
[1644244692841,0.00069444,43010.0,43002.0,0.37529075]
[1644244693336,0.00069444,43010.0,43002.0,0.43344601]
[1644244693738,0.21282824,43011.0,43002.0,0.43273416]
[1644244693938,0.21282824,43011.0,43002.0,0.43344601]
[1644244694190,0.00069444,43010.0,43002.0,0.43344601]
[1644244694390,0.00069444,43010.0,43002.0,0.16702411]
[1644244694988,0.21282824,43011.0,43002.0,0.16631226]
[1644244695192,0.32415497,43013.0,43002.0,0.00071185]
[1644244695193,0.01928808,43003.0,43002.0,0.00071185]
[1644244695393,0.34517908,43003.0,43002.0,0.00071185]
[1644244695590,0.06787623,42989.0,42981.0,0.19828422]
[1644244695790,0.06787623,42989.0,42979.0,0.56449008]
[1644244695791,0.01928808,42988.0,42984.0,0.03071192]
[1644244696189,0.2118797,42988.0,42984.0,0.03071192]
[1644244696787,0.01928808,42989.0,42984.0,0.03071192]
[1644244697590,0.27784225,42991.0,42984.0,0.03071192]
[1644244697853,0.26442435,42989.0,42984.0,0.03071192]
[1644244698251,0.26442435,42989.0,42984.0,0.02571192]
[1644244698454,0.28871243,42989.0,42984.0,0.02571192]
[1644244698656,0.26442435,42989.0,42984.0,0.02571192]
[1644244698853,0.26442435,42989.0,42984.0,0.0262156]
[1644244699056,0.02428808,42986.0,42984.0,0.00050368]
[1644244699258,0.02428808,42986.0,42984.0,3.68e-06]
[1644244699457,0.325891,42985.0,42984.0,3.68e-06]
[1644244699856,0.475891,42985.0,42970.0,0.07628317]
[1644244700057,0.233498,42976.0,42965.0,0.19828422]
[1644244700259,0.15,42985.0,42965.0,0.19828422]
[1644244700260,0.3,42984.0,42969.0,0.02571192]
[1644244700560,0.02428808,42981.0,42976.0,0.02571192]
[1644244700758,0.0428,42999.0,42968.0,0.4967295]
[1644244700759,0.18335201,43012.0,42980.0,0.02571192]
[1644244700962,0.18335201,43012.0,42980.0,0.06851192]
[1644244700963,0.02428808,42998.0,42980.0,0.06851192]
[1644244701161,0.02428808,42995.0,42984.0,0.02571192]
[1644244701360,0.23965313,42997.0,42992.0,0.06675001]
[1644244701601,0.23965313,42997.0,42984.0,0.32571192]
[1644244701602,0.02042369,42988.0,42984.0,0.32571192]
[1644244701991,0.02042369,42988.0,42984.0,0.37571192]
[1644244702191,0.02042369,42988.0,42987.0,0.02571192]
[1644244702592,0.02042369,42988.0,42987.0,0.06851192]
[1644244702791,0.02042369,42988.0,42987.0,0.11851192]
[1644244703195,0.02042369,42988.0,42987.0,0.25062246]
[1644244703391,0.02042369,42988.0,42987.0,0.56911556]
[1644244703595,0.02428808,42999.0,42987.0,0.56911556]
[1644244703596,0.02428808,42996.0,42987.0,0.56911556]
[1644244703793,0.02192778,42997.0,42987.0,0.57728856]
[1644244703993,0.02192778,42997.0,42991.0,0.02571192]
[1644244704194,0.02192778,42997.0,42987.0,0.47411556]
[1644244704395,0.25004855,42991.0,42987.0,0.0428]
[1644244704795,0.25004855,42991.0,42984.0,0.26182946]
[1644244704994,0.25004855,42991.0,42982.0,0.00071153]
[1644244705436,0.02428808,42992.0,42988.0,0.07620527]
[1644244705638,0.02428808,42992.0,42983.0,0.02571192]
[1644244705842,0.02196528,42997.0,42990.0,0.02571192]
[1644244706038,0.02196528,42997.0,42991.0,0.100968]
[1644244706239,0.02196528,42997.0,42992.0,0.40697023]
[1644244706939,0.02196528,42997.0,42996.0,0.08636843]
[1644244707638,0.00069747,42999.0,42996.0,0.08636843]
[1644244708340,0.00071,43002.0,42996.0,0.08636843]
[1644244708541,0.0006975,43000.0,42996.0,0.08636843]
[1644244708737,0.0006975,43000.0,42996.0,0.17916843]
[1644244708938,0.0006975,43000.0,42997.0,0.02571192]
[1644244709190,0.21200831,42998.0,42996.0,0.0928]
[1644244709390,0.00071,43002.0,42996.0,0.0428]
[1644244709592,0.0006975,42999.0,42996.0,0.0428]
[1644244710690,0.02428808,43001.0,42996.0,0.04201654]
[1644244710890,0.02428808,42998.0,42996.0,0.04201654]
[1644244711088,0.0006975,43000.0,42996.0,0.04201654]
[1644244711089,0.02428808,42997.0,42996.0,0.04201654]
[1644244711294,0.02428808,42997.0,42991.0,0.01843672]
[1644244711488,0.02428808,42997.0,42990.0,0.01919743]
[1644244711689,0.0006975,43000.0,42996.0,0.02571192]
[1644244711889,0.0006975,43000.0,42991.0,0.0428]
[1644244711890,0.02117983,43008.0,42999.0,0.02571192]
[1644244712089,0.02117983,43008.0,42992.0,0.3]
[1644244712090,0.02117983,43008.0,43007.0,0.06787041]
[1644244712291,0.02117983,43008.0,43007.0,0.13638233]
[1644244712689,0.02117983,43008.0,43007.0,0.23638233]
[1644244712939,0.02117983,43008.0,43007.0,0.29452233]
[1644244713543,0.0006975,43010.0,43007.0,0.59452233]
[1644244713940,0.0006975,43010.0,43007.0,0.81077433]
[1644244714343,0.0210921,43017.0,43007.0,0.81077433]
[1644244714539,0.02193816,43017.0,43016.0,0.02571192]
[1644244714741,0.02,43019.0,43016.0,0.02571192]
[1644244714742,0.01569754,43019.0,43016.0,0.02571192]
[1644244714942,0.002,43024.0,43019.0,0.7]
[1644244714943,0.001,43024.0,43019.0,0.7]
[1644244715143,0.08401191,43028.0,43024.0,0.75]
[1644244715342,0.001,43036.0,43024.0,0.75]
[1644244715343,0.002,43032.0,43029.0,0.6]
[1644244715540,0.002,43032.0,43031.0,0.02571192]
[1644244715541,0.001,43032.0,43031.0,0.02571192]
[1644244715740,0.001,43032.0,43031.0,0.33075887]
[1644244715940,0.001,43032.0,43031.0,0.43075887]
[1644244716144,0.001,43032.0,43031.0,0.91461779]
[1644244716342,0.001,43036.0,43032.0,0.65]
[1644244716592,0.001,43036.0,43033.0,0.0428]
[1644244716785,0.001,43036.0,43033.0,0.0928]
[1644244716990,0.001,43036.0,43034.0,0.3]
[1644244717186,0.001,43036.0,43035.0,0.06851192]
[1644244717592,0.29809428,43046.0,43039.0,0.75]
[1644244717593,0.08216599,43046.0,43039.0,0.75]
[1644244717795,0.05652984,43059.0,43039.0,0.75]
[1644244717796,0.03224176,43059.0,43048.0,0.65]
[1644244717995,0.03224176,43059.0,43055.0,0.02571192]
[1644244718192,0.19411349,43076.0,43055.0,0.02571192]
[1644244718193,0.27967566,43082.0,43058.0,0.02571192]
[1644244718393,0.50333818,43083.0,43060.0,1.0585271]
[1644244718394,0.00104472,43067.0,43060.0,1.0585271]
[1644244718593,0.0469,43092.0,43068.0,0.75]
[1644244718594,0.02428808,43091.0,43068.0,0.75]
[1644244718796,0.0469,43092.0,43086.0,0.02571192]
[1644244718797,0.00095624,43088.0,43086.0,0.02571192]
[1644244718994,0.02,43099.0,43088.0,0.35]
[1644244718995,0.015,43099.0,43088.0,0.35]
[1644244719298,0.015,43099.0,43090.0,0.5352]
[1644244719494,0.015,43099.0,43096.0,0.02571192]
[1644244719695,0.02002413,43103.0,43098.0,0.5]
[1644244719894,0.277,43114.0,43099.0,0.3428]
[1644244720193,0.277,43114.0,43099.0,0.3928]
[1644244720441,0.00020919,43106.0,43103.0,0.02271192]
[1644244720639,0.00020919,43106.0,43104.0,0.0428]
[1644244720841,0.00020919,43106.0,43101.0,0.108003]
[1644244721054,0.00020919,43106.0,43083.0,0.17402486]
[1644244721055,0.02728808,43105.0,43088.0,0.02271192]
[1644244721344,0.00020919,43106.0,43097.0,0.01879855]
[1644244721345,0.02728808,43103.0,43097.0,0.01879855]
[1644244721747,0.00020919,43099.0,43098.0,0.0428]
[1644244722241,0.00020919,43099.0,43098.0,0.0328]
[1644244722641,0.02728808,43103.0,43098.0,0.0328]
[1644244722842,0.277,43114.0,43097.0,0.01879855]
[1644244722843,0.02728808,43099.0,43097.0,0.01879855]
[1644244723042,0.3221363,43098.0,43097.0,0.01879855]
[1644244723241,0.54527725,43098.0,43097.0,0.01879855]
[1644244723442,0.00083667,43098.0,43097.0,0.01879855]
[1644244723643,0.00083667,43098.0,43092.0,0.01909727]
[1644244723845,0.00083667,43098.0,43093.0,0.0428]
[1644244724094,0.00069486,43097.0,43095.0,0.02271192]
[1644244724289,0.00069486,43097.0,43096.0,0.0428]
[1644244724488,0.00083667,43098.0,43097.0,0.4]
[1644244724689,0.00083667,43098.0,43097.0,0.3428]
[1644244724890,0.00083667,43098.0,43097.0,0.36551192]
[1644244725188,0.00083667,43098.0,43097.0,0.0428]
[1644244725387,0.00083667,43098.0,43093.0,0.3]
[1644244725388,0.00083667,43098.0,43093.0,0.4]
[1644244725791,0.00083667,43098.0,43097.0,0.02271192]
[1644244725989,0.00083667,43098.0,43097.0,0.06551192]
[1644244726191,0.02812475,43098.0,43097.0,0.0428]
[1644244726396,0.02812475,43098.0,43091.0,0.88718861]
[1644244726591,0.02312475,43094.0,43091.0,0.5]
[1644244727190,0.02312475,43094.0,43089.0,0.02010953]
[1644244727391,0.00083093,43099.0,43089.0,0.02010953]
[1644244727591,0.00083093,43099.0,43092.0,0.08821953]
[1644244727843,0.0428,43120.0,43092.0,0.08821953]
[1644244727844,0.01039056,43118.0,43106.0,2.01650818]
[1644244728045,0.00126984,43131.0,43107.0,1.0928]
[1644244728046,0.01677289,43128.0,43107.0,1.0928]
[1644244728253,0.01677289,43128.0,43127.0,0.25969515]
[1644244728440,0.01677289,43128.0,43127.0,0.0428]
[1644244728639,0.01677289,43128.0,43112.0,0.02687525]
[1644244728640,0.03989764,43128.0,43112.0,0.02687525]
[1644244728840,0.01677289,43128.0,43119.0,0.02687525]
[1644244729044,0.01677289,43128.0,43114.0,0.3]
[1644244729240,0.01677289,43128.0,43114.0,0.42687525]
[1644244729440,0.01677289,43128.0,43122.0,0.02687525]
[1644244729740,0.01677289,43128.0,43126.0,0.02687525]
[1644244730138,0.00020856,43127.0,43126.0,0.02687525]
[1644244730340,0.00020856,43127.0,43126.0,0.06967525]
[1644244730542,0.00020856,43127.0,43115.0,0.1855869]
[1644244730545,0.02333331,43127.0,43119.0,0.0428]
[1644244730742,0.02333331,43127.0,43115.0,0.6855869]
[1644244730743,0.02312475,43120.0,43115.0,0.6855869]
[1644244730940,0.00020856,43127.0,43116.0,0.0428]
[1644244731143,0.02312475,43126.0,43116.0,0.0428]
[1644244731341,0.02312475,43126.0,43119.0,0.08481258]
[1644244731610,0.01677289,43128.0,43120.0,0.0428]
[1644244731786,0.01677289,43128.0,43121.0,0.3428]
[1644244731984,0.01677289,43128.0,43122.0,0.3428]
[1644244732184,0.01677289,43128.0,43123.0,0.0428]
[1644244732386,0.01677289,43128.0,43124.0,0.0428]
[1644244732686,0.01677289,43128.0,43125.0,0.0428]
[1644244732886,0.01677289,43128.0,43116.0,0.35]
[1644244733086,0.01677289,43128.0,43118.0,0.02687525]
[1644244733288,0.01677289,43128.0,43125.0,0.02687525]
[1644244733588,0.01677289,43128.0,43126.0,0.0428]
[1644244733987,0.00126984,43131.0,43127.0,1.05]
[1644244734195,1.08,43133.0,43131.0,0.75]
[1644244734196,0.74876984,43133.0,43131.0,0.75]
[1644244734387,0.01676984,43133.0,43132.0,0.0428]
[1644244734991,0.01676984,43133.0,43132.0,0.0278]
[1644244735190,0.32099342,43133.0,43132.0,0.0278]
[1644244735444,0.6128885,43133.0,43129.0,0.01952705]
[1644244735643,0.02312475,43130.0,43129.0,0.01952705]
[1644244735845,0.02312475,43130.0,43127.0,0.0428]
[1644244736045,0.02312475,43130.0,43116.0,0.00077981]
[1644244736046,0.75,43128.0,43116.0,0.00077981]
[1644244736244,0.68644528,43126.0,43116.0,0.00077981]
[1644244736445,0.01812475,43117.0,43116.0,0.00077981]
[1644244736847,0.276711,43117.0,43116.0,0.00077981]
[1644244737247,0.25858625,43117.0,43116.0,0.00077981]
[1644244737448,0.276711,43117.0,43116.0,0.00077981]
[1644244741291,0.261711,43117.0,43116.0,0.00077981]
[1644244742091,0.256711,43117.0,43116.0,0.00077981]
[1644244742489,0.156711,43117.0,43116.0,0.00077981]
[1644244743140,0.55808795,43117.0,43116.0,0.00077981]
[1644244743344,0.75,43116.0,43107.0,4.95e-06]
[1644244743542,0.75,43116.0,43082.0,0.5]
[1644244743543,0.01812475,43108.0,43082.0,0.5]
[1644244743741,0.01812475,43096.0,43088.0,0.03187525]
[1644244743940,0.03552146,43108.0,43088.0,0.05]
[1644244744141,0.03552146,43108.0,43092.0,0.06636274]
[1644244744341,0.03552146,43108.0,43083.0,0.0428]
[1644244744542,0.03552146,43108.0,43083.0,0.5428]
[1644244744744,0.03552146,43108.0,43104.0,0.05]
[1644244745242,0.03552146,43108.0,43089.0,0.07503]
[1644244745243,0.03552146,43108.0,43102.0,0.0428]
[1644244745644,0.03552146,43108.0,43107.0,0.05]
[1644244745844,0.03552146,43108.0,43107.0,0.0928]
[1644244746244,0.03552146,43108.0,43107.0,0.0428]
[1644244747286,0.03552146,43108.0,43104.0,0.05]
[1644244747484,0.03552146,43108.0,43095.0,0.6]
[1644244747485,0.03552146,43108.0,43100.0,0.045]
[1644244747688,0.005,43101.0,43092.0,0.045]
[1644244747884,0.05,43104.0,43089.0,0.41574877]
[1644244748085,0.19081443,43101.0,43093.0,0.045]
[1644244748286,0.19081443,43101.0,43089.0,0.045]
[1644244748287,0.08169878,43098.0,43089.0,0.045]
[1644244748484,0.30649038,43107.0,43088.0,0.5]
[1644244748485,0.05,43094.0,43088.0,0.5]
[1644244748687,0.03552146,43108.0,43093.0,0.045]
[1644244748688,0.04052146,43108.0,43093.0,0.045]
[1644244748893,0.05,43105.0,43094.0,0.3428]
[1644244749087,0.05,43105.0,43104.0,0.045]
[1644244749285,0.05,43105.0,43104.0,0.0878]
[1644244749688,0.055,43105.0,43104.0,0.0878]
[1644244749888,0.05,43105.0,43104.0,0.1378]
[1644244750370,0.03552146,43108.0,43104.0,0.1378]
[1644244750371,0.05486252,43108.0,43104.0,0.1378]
[1644244750666,0.005,43110.0,43107.0,0.045]
[1644244750967,0.00068933,43120.0,43108.0,0.3428]
[1644244751268,0.20268577,43118.0,43117.0,0.045]
[1644244751468,0.20768577,43118.0,43117.0,0.0428]
[1644244751967,0.001,43128.0,43117.0,0.0878]
[1644244752166,0.051,43128.0,43118.0,0.3]
[1644244752471,0.051,43128.0,43123.0,0.045]
[1644244752666,0.051,43128.0,43127.0,0.045]
[1644244752667,0.001,43128.0,43127.0,0.045]
[1644244752865,0.001,43128.0,43127.0,0.0878]
[1644244753066,0.001,43128.0,43127.0,0.3878]
[1644244753267,0.01676984,43133.0,43128.0,0.75]
[1644244753268,0.00776984,43133.0,43128.0,0.75]
[1644244753465,0.05,43136.0,43132.0,0.045]
[1644244753666,0.001,43143.0,43136.0,0.75]
[1644244753667,0.01723722,43139.0,43136.0,0.75]
[1644244753869,0.00226668,43140.0,43138.0,0.045]
[1644244754129,0.021,43142.0,43139.0,1.3207394]
[1644244754314,0.0005,43148.0,43141.0,0.045]
[1644244754614,0.02355,43150.0,43144.0,0.045]
[1644244754813,4.6e-05,43149.0,43148.0,0.045]
[1644244755019,0.001,43155.0,43150.0,0.75]
[1644244755215,0.00147587,43179.0,43157.0,0.80791891]
[1644244755414,0.01159359,43184.0,43178.0,0.5802]
[1644244755616,0.01159359,43184.0,43183.0,0.5802]
[1644244755617,0.24684784,43184.0,43183.0,0.5802]
[1644244755812,0.002,43186.0,43184.0,0.7]
[1644244756014,0.17639102,43190.0,43186.0,0.05788]
[1644244756217,0.05,43187.0,43183.0,0.05]
[1644244756416,0.17639102,43190.0,43184.0,0.0428]
[1644244756612,0.17639102,43190.0,43185.0,0.0328]
[1644244756613,0.16639102,43190.0,43185.0,0.0328]
[1644244756814,0.0002256,43191.0,43178.0,0.1]
[1644244757015,0.0002256,43191.0,43179.0,0.057894]
[1644244757016,0.001,43189.0,43179.0,0.057894]
[1644244757618,0.05,43190.0,43180.0,0.0428]
[1644244757836,0.05059447,43193.0,43180.0,0.0428]
[1644244758037,0.0009024,43193.0,43184.0,0.057883]
[1644244758238,0.11567666,43199.0,43187.0,0.057878]
[1644244758536,93.98610474,43200.0,43188.0,0.0428]
[1644244758734,84.17204121,43200.0,43188.0,0.0428]
[1644244758936,84.17204121,43200.0,43194.0,0.057871]
[1644244759140,84.17204121,43200.0,43195.0,0.0428]
[1644244759538,84.17204121,43200.0,43196.0,0.3]
[1644244759737,81.18969421,43200.0,43199.0,0.5852]
[1644244759943,81.18969421,43200.0,43199.0,1.028]
[1644244759944,73.20565571,43200.0,43199.0,1.028]
[1644244760144,35.83542723,43200.0,43199.0,7.5200423]